bitfinex/quotes_SOLUSD_20250416
["timestamp","ask_amount","ask_price","bid_price","bid_amount"]
[1744806455274,32.99501313,126.38,126.34,14.2032027]
[1744806455972,32.85285156,126.38,126.35,7.91452314]
[1744806456168,10.78,126.39,126.36,14.2032027]
[1744806458072,10.78,126.39,126.37,7.91327055]
[1744806460170,10.78,126.39,126.37,22.11647325]
[1744806461069,10.78,126.39,126.37,7.91327055]
[1744806461278,10.78,126.39,126.37,22.11647325]
[1744806462561,10.78,126.39,126.37,7.91327055]
[1744806466374,18.79181043,126.38,126.32,26.0]
[1744806466572,14.2032027,126.36,126.33,27.704715]
[1744806466872,14.2032027,126.36,126.33,7.91577614]
[1744806467399,20.44091043,126.38,126.33,7.91577614]
[1744806467562,14.2032027,126.37,126.33,7.91577614]
[1744806467964,14.2032027,126.36,126.33,7.91577614]
[1744806468889,14.2032027,126.37,126.33,7.91577614]
[1744806470770,14.2032027,126.36,126.33,7.91577614]
[1744806471166,14.2032027,126.35,126.32,7.91612526]
[1744806472684,14.2032027,126.35,126.31,7.91702953]
[1744806472883,14.2032027,126.34,126.31,7.91702953]
[1744806473797,14.2032027,126.35,126.31,7.91702953]
[1744806474172,14.2032027,126.34,126.31,7.91702953]
[1744806475693,14.34536427,126.35,126.31,7.91702953]
[1744806476599,14.2032027,126.34,126.31,7.91702953]
[1744806477398,9.098054,126.34,126.31,7.91702953]
[1744806477586,9.24021557,126.35,126.31,7.91702953]
[1744806478496,9.098054,126.33,126.3,7.91765637]
[1744806478690,9.098054,126.32,126.3,7.91765637]
[1744806478882,9.098054,126.32,126.29,7.91800396]
[1744806479401,9.098054,126.31,126.29,7.91800396]
[1744806479573,9.098054,126.31,126.26,26.0]
[1744806479574,9.098054,126.31,126.28,7.91864684]
[1744806479772,9.098054,126.3,126.28,7.91864684]
[1744806479976,18.79181043,126.32,126.28,7.91864684]
[1744806479977,9.098054,126.31,126.28,7.91864684]
[1744806480189,18.79181043,126.32,126.28,7.91864684]
[1744806480403,9.098054,126.32,126.28,17.01670084]
[1744806480695,29.098054,126.33,126.28,17.01670084]
[1744806480895,10.78,126.34,126.31,9.098054]
[1744806481502,10.78,126.34,126.33,9.098054]
[1744806482099,58.52770286,126.38,126.33,9.098054]
[1744806482273,58.52770286,126.38,126.3,1.6451]
[1744806482474,58.52770286,126.38,126.34,7.91514959]
[1744806483192,63.6371142,126.38,126.34,7.91514959]
[1744806484001,71.5497784,126.38,126.34,7.91514959]
[1744806484188,63.6371142,126.38,126.34,7.91514959]
[1744806484392,29.42964886,126.38,126.34,22.12261493]
[1744806484697,14.20746534,126.37,126.34,7.91514959]
[1744806485980,14.20746534,126.36,126.29,27.7139916]
[1744806486180,14.20746534,126.36,126.32,14.20746534]
[1744806486699,14.20746534,126.37,126.32,14.20746534]
[1744806487200,14.20746534,126.37,126.33,7.91577614]
[1744806487786,10.78,126.38,126.34,14.20746534]
[1744806488099,24.98746534,126.38,126.34,14.20746534]
[1744806488500,10.78,126.38,126.37,14.20746534]
[1744806488795,18.64964886,126.41,126.37,14.20746534]
[1744806489000,40.76794588,126.41,126.37,14.20746534]
[1744806489195,18.64964886,126.41,126.37,22.1201823]
[1744806489779,26.56042382,126.41,126.37,22.1201823]
[1744806490001,32.8571142,126.41,126.37,22.1201823]
[1744806490808,18.64964886,126.41,126.37,22.1201823]
[1744806491405,14.20746534,126.45,126.4,14.20746534]
[1744806491817,18.64964886,126.45,126.41,14.20746534]
[1744806492111,32.8571142,126.45,126.41,14.20746534]
[1744806492310,32.8571142,126.45,126.42,7.9101408]
[1744806492487,70.98746534,126.46,126.42,22.11760614]
[1744806492804,44.98746534,126.46,126.42,22.11760614]
[1744806493008,52.89510594,126.46,126.42,7.9101408]
[1744806493805,14.20746534,126.45,126.42,7.9101408]
[1744806495289,14.20746534,126.45,126.4,14.20746534]
[1744806495684,14.20746534,126.43,126.38,22.12010974]
[1744806495899,14.20746534,126.42,126.38,22.12010974]
[1744806496098,14.20746534,126.41,126.38,7.9126444]
[1744806496403,14.20746534,126.4,126.35,59.99316854]
[1744806497207,14.20746534,126.4,126.36,22.12103141]
[1744806498004,14.20746534,126.4,126.36,7.91356607]
[1744806498401,14.20746534,126.39,126.35,22.12173764]
[1744806498615,14.20746534,126.4,126.36,14.20746534]
[1744806499196,14.20746534,126.4,126.37,7.91327055]
[1744806499785,71.69017523,126.41,126.37,7.91327055]
[1744806500188,14.20746534,126.4,126.37,7.91327055]
[1744806503310,38.79181043,126.41,126.37,7.91327055]
[1744806503618,14.20746534,126.39,126.35,22.12198848]
[1744806503814,46.70262204,126.41,126.35,22.12198848]
[1744806503815,14.20746534,126.4,126.35,22.12198848]
[1744806504509,14.20746534,126.4,126.35,41.90829635]
[1744806504811,14.20746534,126.4,126.36,14.20746534]
[1744806505002,52.99927577,126.41,126.36,14.20746534]
[1744806506210,52.99927577,126.41,126.37,7.91327055]
[1744806506409,14.20746534,126.4,126.37,7.91327055]
[1744806508512,14.20746534,126.39,126.34,22.12261493]
[1744806508709,14.20746534,126.38,126.34,7.91514959]
[1744806508914,7.91154401,126.4,126.34,7.91514959]
[1744806508915,14.20746534,126.37,126.34,7.91514959]
[1744806509111,14.20746534,126.38,126.34,22.12261493]
[1744806509303,32.99927577,126.39,126.34,22.12261493]
[1744806509817,14.20746534,126.38,126.34,22.12261493]
[1744806510314,18.79181043,126.39,126.34,22.12261493]
[1744806510513,32.99927577,126.39,126.34,22.12261493]
[1744806511714,14.20746534,126.38,126.34,22.12261493]
[1744806511911,18.79181043,126.39,126.34,22.12261493]
[1744806511912,32.99927577,126.39,126.34,22.12261493]
[1744806513412,18.79181043,126.39,126.34,22.12261493]
[1744806513618,32.99927577,126.39,126.35,14.20746534]
[1744806513812,32.99927577,126.39,126.34,22.12261493]
[1744806514611,20.0,126.43,126.37,14.20746534]
[1744806514809,19.77134418,126.45,126.34,53.70302358]
[1744806514810,10.78,126.44,126.4,14.20746534]
[1744806515313,10.78,126.44,126.42,9.08224885]
[1744806515614,349.78,126.48,126.43,9.08224885]
[1744806515615,294.64893726,126.48,126.43,9.08224885]
[1744806515819,294.64893726,126.48,126.44,9.08224885]
[1744806515820,320.64893726,126.48,126.44,9.08224885]
[1744806516205,35.78115606,126.47,126.43,7.90941694]
[1744806517219,32.17243067,126.51,126.44,14.18038704]
[1744806517220,14.18038704,126.49,126.44,14.18038704]
[1744806518215,14.18038704,126.49,126.45,7.90826413]
[1744806518412,32.8300359,126.5,126.45,22.08865117]
[1744806519115,14.18038704,126.51,126.47,14.18038704]
[1744806519417,14.18038704,126.51,126.46,14.18038704]
[1744806520125,14.18038704,126.5,126.47,7.90701352]
[1744806520514,14.18038704,126.48,126.4,10.78]
[1744806520712,14.18038704,126.47,126.43,14.18038704]
[1744806520905,14.18038704,126.48,126.43,14.18038704]
[1744806522120,14.18038704,126.48,126.44,7.90888959]
[1744806522416,14.18038704,126.48,126.43,14.18038704]
[1744806522417,14.18038704,126.47,126.42,14.18038704]
[1744806523309,14.18038704,126.45,126.42,7.9098964]
[1744806523502,14.18038704,126.46,126.42,7.9098964]
[1744806524318,22.08830694,126.46,126.42,7.9098964]
[1744806524627,14.18038704,126.46,126.42,22.09028344]
[1744806525125,14.18038704,126.46,126.42,7.9098964]
[1744806527018,32.97219747,126.47,126.43,14.18038704]
[1744806527329,32.97219747,126.47,126.42,22.09028344]
[1744806528728,14.18038704,126.46,126.42,22.09028344]
[1744806528925,14.18038704,126.45,126.42,7.9098964]
[1744806529422,26.69902799,126.47,126.42,7.9098964]
[1744806529423,32.8300359,126.46,126.42,7.9098964]
[1744806530005,32.8300359,126.46,126.42,22.09028344]
[1744806531519,19.76404274,126.5,126.45,14.18038704]
[1744806531520,18.64964886,126.5,126.45,14.18038704]
[1744806531721,32.8300359,126.5,126.45,14.18038704]
[1744806532234,18.64964886,126.5,126.45,14.18038704]
[1744806532434,32.8300359,126.5,126.46,7.90763877]
[1744806532617,14.18038704,126.49,126.46,7.90763877]
[1744806534834,14.18038704,126.49,126.45,7.90826413]
[1744806535732,14.18038704,126.48,126.45,7.90826413]
[1744806536640,14.18038704,126.47,126.43,7.90951514]
[1744806538846,14.18038704,126.45,126.41,7.91076655]
[1744806540443,18.64964886,126.46,126.41,22.09115359]
[1744806540654,32.8300359,126.46,126.41,22.09115359]
[1744806541842,14.18038704,126.45,126.41,22.09115359]
[1744806542542,14.18038704,126.45,126.41,7.91076655]
[1744806547146,9.08218562,126.45,126.41,7.91076655]
[1744806547848,26.14216157,126.48,126.42,9.08218562]
[1744806548149,35.08218562,126.48,126.44,9.08218562]
[1744806548661,42.98860567,126.48,126.43,9.08218562]
[1744806549225,48.09054043,126.48,126.43,14.18412038]
[1744806549429,40.18412038,126.48,126.43,14.18412038]
[1744806549642,48.09053852,126.48,126.43,14.18412038]
[1744806549834,48.09053852,126.48,126.44,7.90888959]
[1744806550042,26.0,126.5,126.46,14.18412038]
[1744806550241,48.08934354,126.5,126.45,14.18412038]
[1744806550852,14.18412038,126.49,126.45,14.18412038]
[1744806551747,14.18412038,126.49,126.44,41.86523394]
[1744806553352,14.18412038,126.49,126.45,14.18412038]
[1744806554737,26.0,126.5,126.45,14.18412038]
[1744806554738,40.18412038,126.5,126.45,14.18412038]
[1744806554928,14.18412038,126.49,126.45,14.18412038]
[1744806555328,14.23448338,126.49,126.46,7.90763877]
[1744806559345,14.18412038,126.48,126.45,7.90795704]
[1744806560636,22.14025511,126.49,126.45,7.90795704]
[1744806562452,18.84217343,126.49,126.45,7.90795704]
[1744806562656,33.02629381,126.49,126.45,22.09207742]
[1744806563356,33.02629381,126.49,126.45,7.90795704]
[1744806564563,33.02629381,126.49,126.45,22.09207742]
[1744806564866,14.18412038,126.48,126.44,22.09268882]
[1744806565159,33.02629381,126.49,126.44,22.09268882]
[1744806566465,40.93210268,126.49,126.44,22.09268882]
[1744806566757,40.93210268,126.49,126.42,19.774709]
[1744806566758,14.18412038,126.47,126.42,27.6848498]
[1744806566943,14.18412038,126.47,126.42,41.86897018]
[1744806567249,14.18412038,126.47,126.43,14.18412038]
[1744806567757,14.18412038,126.47,126.43,22.09306733]
[1744806567945,33.01073782,126.48,126.43,22.09306733]
[1744806570447,14.18412038,126.47,126.43,22.09306733]
[1744806570636,14.18412038,126.47,126.43,7.90894695]
[1744806571153,27.87081336,126.46,126.38,10.92]
[1744806571341,9.07900293,126.45,126.38,10.92]
[1744806571540,9.07900293,126.45,126.4,9.07900293]
[1744806571746,9.07900293,126.45,126.41,9.07900293]
[1744806571946,27.87081336,126.46,126.41,9.07900293]
[1744806572475,35.7790577,126.46,126.41,16.98955659]
[1744806572631,35.63689613,126.46,126.41,16.98955659]
[1744806573159,9.07900293,126.43,126.37,19.78289258]
[1744806573458,9.07900293,126.42,126.38,9.07900293]
[1744806574244,9.07900293,126.42,126.39,7.91201835]
[1744806574444,38.64964886,126.45,126.4,9.07900293]
[1744806574635,47.72865179,126.45,126.41,9.07900293]
[1744806574845,55.6369869,126.45,126.4,9.07900293]
[1744806575342,47.72865179,126.45,126.4,9.07900293]
[1744806575549,55.63703242,126.45,126.4,9.07900293]
[1744806575749,9.07900293,126.44,126.4,9.07900293]
[1744806577040,9.07900293,126.44,126.41,7.91076655]
[1744806577366,9.07900293,126.42,126.33,29.56964886]
[1744806577657,9.07900293,126.4,126.35,9.07900293]
[1744806577836,9.07900293,126.4,126.34,26.0]
[1744806578042,8.57900293,126.4,126.36,9.07900293]
[1744806578362,8.57900293,126.4,126.36,16.99258382]
[1744806578943,9.07900293,126.39,126.34,7.91471222]
[1744806579243,9.07900293,126.39,126.34,16.99371515]
[1744806580375,9.07900293,126.39,126.35,9.07900293]
[1744806580547,27.72865179,126.42,126.38,9.07900293]
[1744806580863,27.72865179,126.42,126.37,9.07900293]
[1744806581367,9.07900293,126.39,126.34,9.07900293]
[1744806581571,9.07900293,126.4,126.35,9.07900293]
[1744806581945,9.07900293,126.39,126.35,9.07900293]
[1744806582839,9.07900293,126.39,126.35,16.99348169]
[1744806583072,9.07900293,126.39,126.35,9.07900293]
[1744806583263,16.99102856,126.39,126.34,9.07900293]
[1744806583858,9.07900293,126.38,126.34,9.07900293]
[1744806584371,16.99102856,126.39,126.34,16.99392209]
[1744806585170,0.14216157,126.41,126.38,9.07900293]
[1744806585171,7.911034,126.41,126.38,9.07900293]
[1744806585473,9.07900293,126.4,126.35,9.07900293]
[1744806585965,9.07900293,126.37,126.31,7.91702953]
[1744806586264,9.07900293,126.36,126.31,16.99603246]
[1744806586464,9.07900293,126.36,126.26,6.19114919]
[1744806586465,9.07900293,126.33,126.26,6.19114919]
[1744806586780,9.07900293,126.3,126.25,9.07900293]
[1744806587266,14.22450921,126.3,126.25,14.22450921]
[1744806587565,14.22450921,126.31,126.26,14.22450921]
[1744806587765,7.91514959,126.34,126.29,14.22450921]
[1744806587940,22.1396588,126.34,126.3,14.22450921]
[1744806588145,22.1396588,126.34,126.29,14.22450921]
[1744806588370,14.22450921,126.33,126.29,14.22450921]
[1744806588679,14.22450921,126.33,126.28,14.22450921]
[1744806589758,14.22450921,126.32,126.27,14.22450921]
[1744806590258,14.22450921,126.32,126.28,14.22450921]
[1744806591472,14.22450921,126.33,126.29,7.91828331]
[1744806594466,14.22450921,126.34,126.29,22.14279252]
[1744806595366,26.0,126.35,126.3,14.22450921]
[1744806595567,48.1391488,126.35,126.3,14.22450921]
[1744806596042,14.22450921,126.34,126.3,14.22450921]
[1744806596557,14.22450921,126.34,126.29,22.14279252]
[1744806597369,20.0,126.37,126.3,14.22450921]
[1744806597555,14.22450921,126.33,126.29,7.91828331]
[1744806599776,14.22450921,126.32,126.28,7.91867575]
[1744806600068,14.22450921,126.31,126.26,14.22450921]
[1744806600259,14.22450921,126.31,126.27,14.22450921]
[1744806600675,14.22450921,126.32,126.28,7.91891035]
[1744806600872,34.22450921,126.35,126.28,7.91891035]
[1744806600873,8.05694378,126.35,126.28,27.71618624]
[1744806601079,92.62854171,126.41,126.28,27.71618624]
[1744806601080,27.9113924,126.4,126.34,14.22450921]
[1744806601282,27.9113924,126.4,126.31,26.0]
[1744806601283,14.22450921,126.37,126.32,14.22450921]
[1744806602461,14.22450921,126.38,126.33,14.22450921]
[1744806602667,14.22450921,126.38,126.34,7.91514959]
[1744806603066,14.22450921,126.38,126.34,22.1396588]
[1744806603371,14.22450921,126.38,126.34,7.91514959]
[1744806604073,14.22450921,126.38,126.34,22.1396588]
[1744806604274,7.91219995,126.39,126.34,22.1396588]
[1744806604275,14.22450921,126.39,126.34,22.1396588]
[1744806604571,14.22450921,126.38,126.34,22.1396588]
[1744806604771,18.79181043,126.4,126.34,22.1396588]
[1744806604772,10.8,126.42,126.37,14.22450921]
[1744806604952,0.050363,126.49,126.41,28.44901842]
[1744806605153,14.22450921,126.46,126.42,14.22450921]
[1744806605358,14.22450921,126.46,126.39,26.0]
[1744806605359,14.22450921,126.47,126.43,14.22450921]
[1744806605561,10.8,126.48,126.45,14.22450921]
[1744806605761,10.8,126.48,126.46,14.22450921]
[1744806605966,25.02450921,126.48,126.43,14.22450921]
[1744806607177,10.8,126.48,126.44,14.22450921]
[1744806607583,25.02450921,126.48,126.44,14.22450921]
[1744806607788,32.87415807,126.47,126.41,7.91076655]
[1744806607998,14.22450921,126.42,126.32,7.91640278]
[1744806608287,14.22450921,126.37,126.33,14.22450921]
[1744806608864,14.22450921,126.38,126.34,22.1396588]
[1744806609276,14.22450921,126.38,126.34,7.91514959]
[1744806609479,14.22450921,126.36,126.33,7.91551068]
[1744806609670,14.22450921,126.34,126.25,47.52475246]
[1744806609872,14.22450921,126.32,126.27,14.22450921]
[1744806610080,14.22450921,126.33,126.28,14.22450921]
[1744806610291,14.22450921,126.32,126.28,14.22450921]
[1744806610783,14.22450921,126.32,126.28,22.14284655]
[1744806610963,14.22450921,126.32,126.28,7.91833734]
[1744806611161,22.75211886,126.32,126.28,7.91833734]
[1744806611900,22.75211886,126.32,126.28,30.6704562]
[1744806612087,59.67428043,126.35,126.3,22.75211886]
[1744806612481,22.75211886,126.34,126.29,22.75211886]
[1744806612683,10.78,126.35,126.32,22.75211886]
[1744806612995,10.78,126.35,126.32,7.91584892]
[1744806613171,10.78,126.35,126.3,30.66977523]
[1744806613172,33.53211886,126.35,126.3,30.66977523]
[1744806613371,10.78,126.35,126.31,22.75211886]
[1744806613595,29.44964886,126.36,126.32,22.75211886]
[1744806613772,10.8,126.36,126.34,22.75211886]
[1744806614181,10.8,126.36,126.33,22.75211886]
[1744806614684,10.8,126.36,126.34,22.75211886]
[1744806615090,10.8,126.36,126.35,7.91452314]
[1744806615489,22.75211886,126.39,126.35,7.91452314]
[1744806615692,22.75211886,126.36,126.31,7.91702953]
[1744806615884,22.75211886,126.37,126.32,22.75211886]
[1744806617288,18.79181043,126.38,126.34,22.75211886]
[1744806617688,41.54392929,126.38,126.33,30.667895]
[1744806617887,22.75211886,126.37,126.33,7.91577614]
[1744806618095,49.45662531,126.38,126.33,30.667895]
[1744806618393,41.54392929,126.38,126.33,30.667895]
[1744806618701,33.55211886,126.4,126.34,22.75211886]
[1744806618874,22.75211886,126.39,126.34,22.75211886]
[1744806619079,22.75211886,126.35,126.32,7.91640278]
[1744806619303,22.75211886,126.34,126.3,7.91765637]
[1744806619471,22.75211886,126.35,126.3,7.91765637]
[1744806619791,22.75211886,126.34,126.3,7.91765637]
[1744806620571,22.75211886,126.35,126.3,30.66977523]
[1744806620978,41.54392929,126.36,126.31,22.75211886]
[1744806621192,41.54392929,126.36,126.31,30.66852698]
[1744806621497,22.75211886,126.35,126.31,7.91640812]
[1744806621696,22.75211886,126.34,126.3,7.91737182]
[1744806621884,22.75211886,126.34,126.3,30.66949068]
[1744806622698,33.55211886,126.35,126.3,30.66949068]
[1744806623692,22.75211886,126.34,126.3,30.66949068]
[1744806623899,22.75211886,126.33,126.3,7.91737182]
[1744806624492,22.75211886,126.31,126.27,7.91953749]
[1744806624991,22.75211886,126.32,126.27,30.67165635]
[1744806625494,22.75211886,126.29,126.24,19.80306118]
[1744806625699,22.75211886,126.3,126.25,22.75211886]
[1744806625888,22.75211886,126.3,126.26,22.75211886]
[1744806626081,22.75211886,126.31,126.26,22.75211886]
[1744806626786,22.75211886,126.3,126.26,22.75211886]
[1744806626986,22.75211886,126.31,126.26,22.75211886]
[1744806627491,22.75211886,126.3,126.24,53.72448069]
[1744806627694,22.75211886,126.3,126.26,22.75211886]
[1744806628500,22.75211886,126.28,126.24,33.92141951]
[1744806628886,22.75211886,126.27,126.24,7.92141951]
[1744806629101,33.55211886,126.3,126.25,22.75211886]
[1744806629292,22.75211886,126.27,126.24,7.92141951]
[1744806629493,22.75211886,126.27,126.22,22.75211886]
[1744806629693,22.75211886,126.28,126.24,22.75211886]
[1744806630200,26.71024764,126.29,126.24,22.75211886]
[1744806630384,10.8,126.3,126.25,22.75211886]
[1744806630586,10.8,126.3,126.27,22.75211886]
[1744806630918,30.8,126.37,126.29,22.75211886]
[1744806631210,22.75211886,126.34,126.29,22.75211886]
[1744806631505,22.75211886,126.34,126.3,7.91765637]
[1744806632791,30.66727155,126.34,126.3,7.91765637]
[1744806633102,22.75211886,126.33,126.29,30.6702359]
[1744806633300,22.75211886,126.32,126.29,7.91811704]
[1744806633598,22.75211886,126.31,126.27,7.91953749]
[1744806633800,22.75211886,126.28,126.23,19.80491727]
[1744806634004,22.75211886,126.27,126.24,7.92141951]
[1744806634413,22.75211886,126.26,126.24,7.92141951]
[1744806634982,22.75211886,126.26,126.22,22.75211886]
[1744806634983,67.54392929,126.25,126.18,7.92518624]
[1744806635195,22.75211886,126.23,126.18,30.6773051]
[1744806635403,22.75211886,126.23,126.18,50.4902707]
[1744806635800,22.75211886,126.21,126.18,7.92518624]
[1744806636007,22.75211886,126.22,126.18,30.6773051]
[1744806637211,22.75211886,126.24,126.19,22.75211886]
[1744806637418,22.75211886,126.24,126.2,22.75211886]
[1744806637789,10.8,126.27,126.23,22.75211886]
[1744806637989,33.55211886,126.27,126.23,22.75211886]
[1744806638390,33.55211886,126.27,126.22,22.75211886]
[1744806638902,33.55211886,126.27,126.23,7.92204705]
[1744806639105,10.8,126.27,126.23,30.67416591]
[1744806639306,10.8,126.27,126.24,22.75211886]
[1744806639820,10.8,126.27,126.23,30.67416591]
[1744806639985,33.55211886,126.27,126.23,30.67416591]
[1744806640704,22.75211886,126.25,126.22,7.92236189]
[1744806640912,22.75211886,126.24,126.21,7.92330243]
[1744806641415,22.75211886,126.23,126.2,7.92377615]
[1744806641708,53.92030757,126.26,126.2,7.92377615]
[1744806641709,22.75211886,126.22,126.2,7.92377615]
[1744806642486,72.712118,126.26,126.2,22.75211886]
[1744806642487,22.75211886,126.24,126.2,22.75211886]
[1744806642686,22.75211886,126.24,126.19,30.67667706]
[1744806643099,18.79181043,126.23,126.17,7.92551938]
[1744806643295,18.79181043,126.23,126.14,42.57134726]
[1744806643296,22.75211886,126.18,126.14,42.57134726]
[1744806643502,10.82,126.22,126.12,30.6810754]
[1744806643503,22.75211886,126.17,126.12,30.6810754]
[1744806644104,22.75211886,126.15,126.12,7.92895654]
[1744806644608,22.75211886,126.16,126.12,22.75211886]
[1744806644808,22.75211886,126.14,126.1,27.75552866]
[1744806645011,22.75211886,126.16,126.11,22.75211886]
[1744806645313,22.75211886,126.15,126.11,22.75211886]
[1744806645604,22.75211886,126.15,126.1,50.50764752]
[1744806645792,22.75211886,126.15,126.1,7.93021411]
[1744806645997,22.75211886,126.14,126.1,30.68233297]
[1744806646215,22.75211886,126.13,126.1,7.93021411]
[1744806646714,22.75211886,126.12,126.09,7.93056044]
[1744806647409,22.75211886,126.13,126.09,30.6826793]
[1744806647601,22.75211886,126.15,126.09,7.93056044]
[1744806647790,22.75211886,126.11,126.09,7.93056044]
[1744806647998,22.75211886,126.1,126.07,7.93210121]
[1744806648588,22.75211886,126.1,126.05,19.83310578]
[1744806648809,22.75211886,126.09,126.05,42.58522464]
[1744806649012,22.75211886,126.09,126.05,68.58522464]
[1744806649806,22.75211886,126.08,126.05,26.0]
[1744806650101,18.9090042,126.12,126.04,7.9339892]
[1744806650102,22.75211886,126.07,126.04,7.9339892]
[1744806650402,22.75211886,126.08,126.04,7.9339892]
[1744806651020,22.75211886,126.09,126.05,22.75211886]
[1744806651232,10.98,126.12,126.06,22.75211886]
[1744806651402,22.75211886,126.1,126.06,22.75211886]
[1744806652203,22.75211886,126.1,126.04,27.76896222]
[1744806652411,22.75211886,126.09,126.05,22.75211886]
[1744806652795,37.55865454,126.12,126.06,7.93273044]
[1744806653026,22.75211886,126.09,126.06,6.93273044]
[1744806653425,22.75211886,126.1,126.06,6.93273044]
[1744806654331,22.75211886,126.09,126.06,6.93273044]
[1744806654910,22.75211886,126.09,126.05,7.93335977]
[1744806655112,22.75211886,126.1,126.06,22.75211886]
[1744806656041,22.75211886,126.1,126.05,50.51887807]
[1744806656914,22.75211886,126.1,126.06,22.75211886]
[1744806657138,10.98,126.12,126.08,22.75211886]
[1744806658342,33.73211886,126.12,126.08,22.75211886]
[1744806658528,33.73211886,126.12,126.05,53.76675921]
[1744806658529,22.75211886,126.11,126.05,53.76675921]
[1744806658727,22.75211886,126.11,126.06,22.75211886]
[1744806658928,22.75211886,126.11,126.07,22.75211886]
[1744806659617,10.98,126.12,126.08,22.75211886]
[1744806659832,29.26961886,126.14,126.09,22.75211886]
[1744806660318,22.75211886,126.13,126.08,22.75211886]
[1744806660644,22.75211886,126.14,126.09,22.75211886]
[1744806660828,22.75211886,126.13,126.09,22.75211886]
[1744806661028,22.75211886,126.13,126.1,7.93021411]
[1744806661236,22.75211886,126.11,126.03,6.5136]
[1744806661411,22.75211886,126.07,126.03,7.93461874]
[1744806661616,22.75211886,126.07,126.03,33.93461874]
[1744806661853,22.75211886,126.07,126.03,56.6867376]
[1744806662023,17.3061,126.11,126.04,22.75211886]
[1744806662222,22.75211886,126.09,126.04,22.75211886]
[1744806662548,22.75211886,126.05,126.02,7.93494768]
[1744806662937,22.75211886,126.05,126.01,7.9358781]
[1744806663525,22.75211886,126.05,126.01,30.68799696]
[1744806663725,22.75211886,126.05,126.01,7.9358781]
[1744806664334,22.75211886,126.04,126.01,7.9358781]
[1744806664529,22.75211886,126.05,126.0,30.68831243]
[1744806664737,33.73211886,126.06,126.02,22.75211886]
[1744806664925,10.98,126.06,126.03,7.93461874]
[1744806665330,33.73211886,126.06,126.03,7.93461874]
[1744806665937,22.75211886,126.05,126.03,7.93461874]
[1744806666445,10.98,126.06,126.03,7.93461874]
[1744806666621,33.73211886,126.06,126.03,7.93461874]
[1744806666827,22.75211886,126.05,126.03,7.93461874]
[1744806667245,22.75211886,126.04,125.99,7.93713786]
[1744806667437,22.75211886,126.02,125.99,7.93713786]
[1744806668039,22.75211886,126.04,126.0,22.75211886]
[1744806668752,10.98,126.06,126.0,22.75211886]
[1744806668753,22.75211886,126.05,126.0,22.75211886]
[1744806669338,22.75211886,126.04,126.01,7.9358781]
[1744806669540,22.75211886,126.05,126.01,7.9358781]
[1744806669925,22.75211886,126.05,126.01,30.68799696]
[1744806670651,33.73211886,126.06,126.02,22.75211886]
[1744806670839,10.98,126.06,126.03,22.75211886]
[1744806671450,10.98,126.1,126.04,30.68610806]
[1744806671650,17.3061,126.11,126.05,22.75211886]
[1744806671856,10.98,126.11,126.07,22.75211886]
[1744806672043,10.98,126.11,126.08,22.75211886]
[1744806672241,22.75211886,126.14,126.1,22.75211886]
[1744806672555,17.2671,126.15,126.12,22.75211886]
[1744806672556,10.98,126.15,126.12,22.75211886]
[1744806672960,10.98,126.15,126.11,22.75211886]
[1744806673261,33.73211886,126.15,126.11,22.75211886]
[1744806673555,33.73211886,126.15,126.12,7.92895654]
[1744806673730,10.98,126.15,126.12,7.92895654]
[1744806673933,10.98,126.15,126.12,30.6810754]
[1744806674636,10.98,126.15,126.12,7.92895654]
[1744806674831,10.98,126.15,126.12,30.6810754]
[1744806675935,10.98,126.15,126.12,7.92895654]
[1744806676130,33.73211886,126.15,126.09,19.82655558]
[1744806676335,22.75211886,126.13,126.08,30.68359094]
[1744806676643,22.75211886,126.09,126.05,7.93335977]
[1744806676952,22.75211886,126.06,126.03,7.93461874]
[1744806677734,22.75211886,126.07,126.03,7.93461874]
[1744806677932,22.75211886,126.06,126.03,7.93461874]
[1744806681152,22.75211886,126.07,126.03,30.6867376]
[1744806681356,22.75211886,126.07,126.03,7.93461874]
[1744806682147,27.92722168,126.15,126.07,7.93210121]
[1744806682355,27.92722168,126.15,126.1,22.75211886]
[1744806682356,22.75211886,126.14,126.1,22.75211886]
[1744806682736,20.0,126.15,126.1,22.75211886]
[1744806683150,42.75211886,126.15,126.1,22.75211886]
[1744806683954,42.75211886,126.15,126.11,22.75211886]
[1744806684156,47.46326772,126.16,126.11,22.75211886]
[1744806684357,47.46326772,126.16,126.12,22.75211886]
[1744806684660,22.75211886,126.15,126.11,22.75211886]
[1744806684864,22.75211886,126.14,126.1,22.75211886]
[1744806685154,22.75211886,126.14,126.09,22.75211886]
[1744806685459,22.75211886,126.13,126.09,22.75211886]
[1744806685650,41.40176772,126.14,126.09,22.75211886]
[1744806685967,41.40176772,126.14,126.1,22.75211886]
[1744806686269,41.40176772,126.14,126.1,7.92966124]
[1744806686436,22.75211886,126.15,126.11,22.75211886]
[1744806688467,22.75211886,126.15,126.12,7.92895654]
[1744806689561,28.81361886,126.16,126.12,30.6810754]
[1744806689760,268.08821096,126.18,126.12,30.6810754]
[1744806689761,281.31211886,126.18,126.13,22.75211886]